[Event "*** Titled Tuesday Blitz"]
[Site "Chess.com"]
[Date "2020.05.12"]
[Round "7"]
[White "walkingcreep"]
[Black "Sergey85Rodchenkov"]
[Result "1-0"]
[WhiteElo "2669"]
[BlackElo "2507"]
[TimeControl "180+1"]
[EndTime "11:18:21 PDT"]
[Termination "walkingcreep won by resignation"]

1. d4 {[%clk 0:03:00.9]} 1... d5 {[%clk 0:02:58.8]} 2. c4 {[%clk 0:03:01.2]}
2... dxc4 {[%clk 0:02:58.5]} 3. Nf3 {[%clk 0:03:00.6]} 3... Nf6 {[%clk
0:02:58.1]} 4. e3 {[%clk 0:03:00.8]} 4... e6 {[%clk 0:02:58.4]} 5. Bxc4 {[%clk
0:03:00.9]} 5... c5 {[%clk 0:02:59.1]} 6. O-O {[%clk 0:03:00.4]} 6... a6 {[%clk
0:02:59.6]} 7. Qe2 {[%clk 0:02:58.4]} 7... b5 {[%clk 0:02:54]} 8. Bb3 {[%clk
0:02:58.1]} 8... Bb7 {[%clk 0:02:52.9]} 9. Nc3 {[%clk 0:02:57.7]} 9... Nbd7
{[%clk 0:02:47.7]} 10. Rd1 {[%clk 0:02:55.6]} 10... cxd4 {[%clk 0:02:40]} 11.
exd4 {[%clk 0:02:55.3]} 11... Nb6 {[%clk 0:02:34]} 12. Bg5 {[%clk 0:02:41.7]}
12... b4 {[%clk 0:02:24.5]} 13. Na4 {[%clk 0:02:34.9]} 13... Be7 {[%clk
0:02:20.6]} 14. Bxf6 {[%clk 0:02:30]} 14... Bxf6 {[%clk 0:02:20.4]} 15. Nxb6
{[%clk 0:02:18.3]} 15... Qxb6 {[%clk 0:02:20]} 16. d5 {[%clk 0:02:16.9]} 16...
O-O {[%clk 0:02:03.4]} 17. dxe6 {[%clk 0:02:15.6]} 17... fxe6 {[%clk 0:02:04]}
18. Rd3 {[%clk 0:01:39.8]} 18... Kh8 {[%clk 0:01:43.7]} 19. Rad1 {[%clk
0:01:38.2]} 19... a5 {[%clk 0:01:21.5]} 20. Rd6 {[%clk 0:01:27.1]} 20... Qc5
{[%clk 0:01:15.3]} 21. Rxe6 {[%clk 0:01:11.7]} 21... Bxf3 {[%clk 0:01:10.4]} 22.
gxf3 {[%clk 0:01:11.4]} 22... Rad8 {[%clk 0:01:01.7]} 23. Rxd8 {[%clk 0:01:09]}
23... Qg5+ {[%clk 0:00:55]} 24. Kh1 {[%clk 0:01:04.3]} 24... Bxd8 {[%clk
0:00:55.4]} 25. Re8 {[%clk 0:00:54.9]} 25... Qf6 {[%clk 0:00:55]} 26. Bc2 {[%clk
0:00:25.2]} 26... g6 {[%clk 0:00:48.9]} 27. Qe4 {[%clk 0:00:23.4]} 27... Bc7
{[%clk 0:00:36.7]} 28. Rxf8+ {[%clk 0:00:20.7]} 28... Qxf8 {[%clk 0:00:36.5]}
29. Qd4+ {[%clk 0:00:20.2]} 29... Qg7 {[%clk 0:00:35]} 30. Qc5 {[%clk
0:00:19.6]} 30... Qf7 {[%clk 0:00:24.5]} 31. Kg2 {[%clk 0:00:17]} 31... Kg7
{[%clk 0:00:24.2]} 32. Bb3 {[%clk 0:00:16.9]} 32... Qf4 {[%clk 0:00:24.1]} 33.
Qe7+ {[%clk 0:00:15.7]} 33... Kh6 {[%clk 0:00:23.4]} 34. Bd5 {[%clk 0:00:11.9]}
34... Qxh2+ {[%clk 0:00:23.1]} 35. Kf1 {[%clk 0:00:12.4]} 35... Qe5 {[%clk
0:00:23.2]} 36. Qf8+ {[%clk 0:00:09.4]} 36... Kg5 {[%clk 0:00:20.7]} 37. Kg2
{[%clk 0:00:07.6]} 37... Qxd5 {[%clk 0:00:17]} 38. Qe7+ {[%clk 0:00:08.1]} 38...
Kf5 {[%clk 0:00:13.7]} 39. Qxc7 {[%clk 0:00:07.6]} 39... h5 {[%clk 0:00:13.9]}
40. a3 {[%clk 0:00:06.5]} 40... bxa3 {[%clk 0:00:13.6]} 41. bxa3 {[%clk
0:00:07.4]} 41... Qe5 {[%clk 0:00:13.8]} 42. Qc8+ {[%clk 0:00:07.3]} 42... Kg5
{[%clk 0:00:13.8]} 43. Qd8+ {[%clk 0:00:07.4]} 43... Kh6 {[%clk 0:00:10.7]} 44.
Qf8+ {[%clk 0:00:07.1]} 44... Kg5 {[%clk 0:00:11]} 45. Qd8+ {[%clk 0:00:07.2]}
45... Kf5 {[%clk 0:00:09.9]} 46. Qf8+ {[%clk 0:00:06.7]} 46... Qf6 {[%clk
0:00:09.6]} 47. Qc5+ {[%clk 0:00:06.4]} 47... Qe5 {[%clk 0:00:09.9]} 48. Qf8+
{[%clk 0:00:06.6]} 48... Ke6 {[%clk 0:00:09.5]} 49. Qe8+ {[%clk 0:00:07.1]}
49... Kf5 {[%clk 0:00:07.5]} 50. Qf7+ {[%clk 0:00:07.1]} 50... Kg5 {[%clk
0:00:07]} 51. Qf8 {[%clk 0:00:05.2]} 51... h4 {[%clk 0:00:05.7]} 52. Qd8+ {[%clk
0:00:05.6]} 52... Kh5 {[%clk 0:00:03.3]} 53. Qg8 {[%clk 0:00:05.7]} 53... Kg5
{[%clk 0:00:03.3]} 54. Qd8+ {[%clk 0:00:05.6]} 54... Kh5 {[%clk 0:00:03.6]} 55.
Qf8 {[%clk 0:00:05.7]} 55... Kg5 {[%clk 0:00:04]} 56. Qg8 {[%clk 0:00:04.4]}
56... Kh5 {[%clk 0:00:04.2]} 57. Qh7+ {[%clk 0:00:04.6]} 57... Kg5 {[%clk
0:00:04.4]} 58. Kh3 {[%clk 0:00:05.2]} 58... Qf5+ {[%clk 0:00:04.2]} 59. Kg2
{[%clk 0:00:05.6]} 59... Qe5 {[%clk 0:00:04.7]} 60. Qf7 {[%clk 0:00:05.2]} 60...
Kh5 {[%clk 0:00:04.6]} 61. Kh3 {[%clk 0:00:05.4]} 61... Qf5+ {[%clk 0:00:04.1]}
62. Qxf5+ {[%clk 0:00:05.6]} 62... gxf5 {[%clk 0:00:05]} 63. f4 {[%clk
0:00:06.5]} 63... a4 {[%clk 0:00:03.9]} 64. f3 {[%clk 0:00:07]} 64... Kg6 {[%clk
0:00:04.5]} 65. Kxh4 {[%clk 0:00:07.9]} 65... Kh6 {[%clk 0:00:04.9]} 66. Kg3
{[%clk 0:00:08.4]} 66... Kh5 {[%clk 0:00:03.6]} 67. Kf2 {[%clk 0:00:08.4]} 67...
Kh4 {[%clk 0:00:04.1]} 68. Kg2 {[%clk 0:00:08.9]} 68... Kh5 {[%clk 0:00:03.9]}
69. Kg3 {[%clk 0:00:09.8]} 69... Kg6 {[%clk 0:00:04]} 70. Kf2 {[%clk 0:00:10.3]}
70... Kh5 {[%clk 0:00:04.4]} 71. Ke3 {[%clk 0:00:10.9]} 71... Kh4 {[%clk
0:00:04.9]} 72. Kd4 {[%clk 0:00:11.5]} 72... Kg3 {[%clk 0:00:05.3]} 73. Ke5
{[%clk 0:00:12.1]} 73... Kxf3 {[%clk 0:00:05.9]} 74. Kxf5 {[%clk 0:00:12.7]}
74... Ke3 {[%clk 0:00:06.6]} 75. Ke5 {[%clk 0:00:13.3]} 75... Kd3 {[%clk
0:00:07.5]} 76. f5 {[%clk 0:00:13.9]} 76... Kc3 {[%clk 0:00:08.4]} 77. f6 {[%clk
0:00:14.6]} 77... Kb3 {[%clk 0:00:09.3]} 78. f7 {[%clk 0:00:15.3]} 78... Kxa3
{[%clk 0:00:10.2]} 79. f8=Q+ {[%clk 0:00:16]} 79... Kb2 {[%clk 0:00:11.1]} 80.
Qb4+ {[%clk 0:00:13.7]} 80... Ka2 {[%clk 0:00:10.4]} 81. Qxa4+ {[%clk
0:00:14.1]} 1-0

[Event "*** Titled Tuesday Blitz"]
[Site "Chess.com"]
[Date "2020.05.12"]
[Round "7"]
[White "mikolka1985"]
[Black "Orest_Vovk"]
[Result "1-0"]
[WhiteElo "2631"]
[BlackElo "2444"]
[TimeControl "180+1"]
[EndTime "11:18:25 PDT"]
[Termination "mikolka1985 won on time"]

1. d4 {[%clk 0:03:00.9]} 1... Nc6 {[%clk 0:02:59.2]} 2. Nf3 {[%clk 0:02:58.6]}
2... e6 {[%clk 0:02:56.7]} 3. c4 {[%clk 0:02:57]} 3... Bb4+ {[%clk 0:02:55.2]}
4. Nc3 {[%clk 0:02:53]} 4... Nf6 {[%clk 0:02:53.7]} 5. Qc2 {[%clk 0:02:51.9]}
5... d6 {[%clk 0:02:50.2]} 6. Bd2 {[%clk 0:02:51.3]} 6... Qe7 {[%clk 0:02:47]}
7. a3 {[%clk 0:02:50]} 7... Bxc3 {[%clk 0:02:46.5]} 8. Bxc3 {[%clk 0:02:49.9]}
8... a5 {[%clk 0:02:46.9]} 9. e3 {[%clk 0:02:48.3]} 9... a4 {[%clk 0:02:43.4]}
10. Be2 {[%clk 0:02:47]} 10... e5 {[%clk 0:02:43.6]} 11. dxe5 {[%clk 0:02:45.6]}
11... dxe5 {[%clk 0:02:42.2]} 12. O-O {[%clk 0:02:45]} 12... O-O {[%clk
0:02:39.1]} 13. h3 {[%clk 0:02:43.8]} 13... e4 {[%clk 0:02:09.3]} 14. Nd2 {[%clk
0:02:31.9]} 14... Bf5 {[%clk 0:02:08.7]} 15. Rfd1 {[%clk 0:02:29.7]} 15... Ne5
{[%clk 0:02:00.4]} 16. Nf1 {[%clk 0:02:28.2]} 16... Nd3 {[%clk 0:01:56.2]} 17.
Ng3 {[%clk 0:02:26.3]} 17... Bg6 {[%clk 0:01:55.3]} 18. Bxf6 {[%clk 0:02:17]}
18... Qxf6 {[%clk 0:01:36.9]} 19. Nxe4 {[%clk 0:02:14.7]} 19... Bxe4 {[%clk
0:01:30.9]} 20. Bxd3 {[%clk 0:02:13.6]} 20... Bxd3 {[%clk 0:01:29.7]} 21. Rxd3
{[%clk 0:02:12.6]} 21... Ra6 {[%clk 0:01:22.2]} 22. Rad1 {[%clk 0:02:09.9]}
22... Qg6 {[%clk 0:01:07.5]} 23. R3d2 {[%clk 0:02:06.8]} 23... Qxc2 {[%clk
0:01:02.8]} 24. Rxc2 {[%clk 0:02:06.3]} 24... Rc6 {[%clk 0:01:03.7]} 25. Rd5
{[%clk 0:02:02.7]} 25... b6 {[%clk 0:01:02.2]} 26. Kf1 {[%clk 0:02:01.3]} 26...
Re8 {[%clk 0:00:57.9]} 27. Ke2 {[%clk 0:01:57.8]} 27... g6 {[%clk 0:00:54.5]}
28. Kd3 {[%clk 0:01:55.8]} 28... h5 {[%clk 0:00:50.8]} 29. Kc3 {[%clk
0:01:54.7]} 29... Ra8 {[%clk 0:00:44.9]} 30. Rcd2 {[%clk 0:01:53.2]} 30... Kg7
{[%clk 0:00:42.4]} 31. Kb4 {[%clk 0:01:51.7]} 31... Re8 {[%clk 0:00:36.5]} 32.
Kb5 {[%clk 0:01:48]} 32... Ree6 {[%clk 0:00:30.7]} 33. R2d4 {[%clk 0:01:45.4]}
33... Rf6 {[%clk 0:00:30]} 34. f3 {[%clk 0:01:41.8]} 34... Rce6 {[%clk
0:00:27.6]} 35. Rd7 {[%clk 0:01:35.1]} 35... Rxe3 {[%clk 0:00:21.2]} 36. Rd2
{[%clk 0:01:34.2]} 36... c6+ {[%clk 0:00:12.8]} 37. Kxb6 {[%clk 0:01:31.6]}
37... Rb3+ {[%clk 0:00:12]} 38. Ka5 {[%clk 0:01:29.2]} 38... c5 {[%clk
0:00:11.9]} 39. Kxa4 {[%clk 0:01:25.4]} 39... Rfb6 {[%clk 0:00:11.3]} 40. Ra7
{[%clk 0:01:23.5]} 40... Rxb2 {[%clk 0:00:10.6]} 41. Rxb2 {[%clk 0:01:15.2]}
41... Rxb2 {[%clk 0:00:11.5]} 42. h4 {[%clk 0:01:06.9]} 42... Rxg2 {[%clk
0:00:11.3]} 43. Kb5 {[%clk 0:01:06]} 43... Rh2 {[%clk 0:00:10.3]} 44. a4 {[%clk
0:01:05.1]} 44... Rxh4 {[%clk 0:00:11.2]} 45. a5 {[%clk 0:01:04.8]} 45... Rf4
{[%clk 0:00:09.7]} 46. a6 {[%clk 0:00:59.4]} 46... Rxf3 {[%clk 0:00:10.1]} 47.
Rd7 {[%clk 0:00:58.7]} 47... Ra3 {[%clk 0:00:07.5]} 48. a7 {[%clk 0:00:57]}
48... h4 {[%clk 0:00:07.3]} 49. Kb6 {[%clk 0:00:56.5]} 49... h3 {[%clk
0:00:07.6]} 50. Rd3 {[%clk 0:00:54.1]} 50... h2 {[%clk 0:00:02.6]} 51. Rxa3
{[%clk 0:00:52.6]} 51... h1=Q {[%clk 0:00:03.2]} 52. a8=Q {[%clk 0:00:52]} 52...
Qb1+ {[%clk 0:00:03.9]} 53. Ka7 {[%clk 0:00:46.9]} 53... Qb4 {[%clk 0:00:03.5]}
54. Ra6 {[%clk 0:00:45.3]} 54... Qxc4 {[%clk 0:00:03.6]} 55. Qc6 {[%clk
0:00:43.6]} 55... Qd4 {[%clk 0:00:02.4]} 56. Ra5 {[%clk 0:00:40.6]} 56... c4+
{[%clk 0:00:02.4]} 57. Qc5 {[%clk 0:00:38.9]} 57... Qxc5+ {[%clk 0:00:02.7]} 58.
Rxc5 {[%clk 0:00:37.9]} 58... f5 {[%clk 0:00:03.3]} 59. Kb6 {[%clk 0:00:36.7]}
59... Kf6 {[%clk 0:00:03]} 60. Kc6 {[%clk 0:00:36.5]} 60... Kg5 {[%clk
0:00:03.7]} 61. Kd5 {[%clk 0:00:36.3]} 61... Kg4 {[%clk 0:00:04.4]} 62. Ke5
{[%clk 0:00:35.7]} 62... f4 {[%clk 0:00:04.9]} 63. Rxc4 {[%clk 0:00:35]} 63...
g5 {[%clk 0:00:05.8]} 64. Ke4 {[%clk 0:00:29.3]} 64... f3 {[%clk 0:00:06]} 65.
Rc1 {[%clk 0:00:25.4]} 65... Kg3 {[%clk 0:00:05]} 66. Ke3 {[%clk 0:00:20.5]}
66... g4 {[%clk 0:00:03.3]} 67. Rg1+ {[%clk 0:00:19.1]} 67... Kh3 {[%clk
0:00:02.3]} 68. Kf2 {[%clk 0:00:18]} 68... Kh4 {[%clk 0:00:02.4]} 69. Rh1+
{[%clk 0:00:09.8]} 69... Kg5 {[%clk 0:00:02.8]} 70. Kg3 {[%clk 0:00:10.1]} 70...
Kf5 {[%clk 0:00:03.3]} 71. Re1 {[%clk 0:00:09.4]} 71... Kg5 {[%clk 0:00:03]} 72.
Re4 {[%clk 0:00:09.1]} 72... Kf5 {[%clk 0:00:02.2]} 73. Rf4+ {[%clk 0:00:08.5]}
73... Ke5 {[%clk 0:00:02.6]} 74. Rxg4 {[%clk 0:00:08.4]} 1-0

[Event "*** Titled Tuesday Blitz"]
[Site "Chess.com"]
[Date "2020.05.12"]
[Round "7"]
[White "ViktoriyaTarasova"]
[Black "Megagigahiper3345"]
[Result "0-1"]
[WhiteElo "2236"]
[BlackElo "2512"]
[TimeControl "180+1"]
[EndTime "11:18:29 PDT"]
[Termination "Megagigahiper3345 won by resignation"]

1. d4 {[%clk 0:03:00.9]} 1... Nf6 {[%clk 0:03:00.1]} 2. c4 {[%clk 0:03:01]} 2...
e6 {[%clk 0:03:00.6]} 3. Nc3 {[%clk 0:03:00.5]} 3... Bb4 {[%clk 0:03:01.2]} 4.
Qc2 {[%clk 0:03:01]} 4... d5 {[%clk 0:03:00.5]} 5. cxd5 {[%clk 0:03:00.8]} 5...
Qxd5 {[%clk 0:03:01.4]} 6. e3 {[%clk 0:02:58.6]} 6... c5 {[%clk 0:03:01.1]} 7.
a3 {[%clk 0:02:58.3]} 7... Bxc3+ {[%clk 0:02:59]} 8. bxc3 {[%clk 0:02:59.1]}
8... O-O {[%clk 0:02:51.2]} 9. Ne2 {[%clk 0:02:55.7]} 9... b6 {[%clk 0:02:49.8]}
10. c4 {[%clk 0:02:47.8]} 10... Qc6 {[%clk 0:02:41.2]} 11. Bb2 {[%clk
0:02:45.3]} 11... Bb7 {[%clk 0:02:35.7]} 12. Nf4 {[%clk 0:02:44.7]} 12... Nbd7
{[%clk 0:02:29.3]} 13. Be2 {[%clk 0:02:42.8]} 13... Qe4 {[%clk 0:02:22.6]} 14.
Qd2 {[%clk 0:02:38.3]} 14... Qf5 {[%clk 0:02:19.4]} 15. f3 {[%clk 0:02:31.7]}
15... cxd4 {[%clk 0:02:14.8]} 16. exd4 {[%clk 0:02:31.1]} 16... Qg5 {[%clk
0:02:01.7]} 17. Rd1 {[%clk 0:02:11.4]} 17... e5 {[%clk 0:01:31.6]} 18. dxe5
{[%clk 0:02:04.8]} 18... Nxe5 {[%clk 0:01:32.5]} 19. O-O {[%clk 0:01:59.6]}
19... Rfe8 {[%clk 0:00:57.7]} 20. Nd5 {[%clk 0:01:48.3]} 20... Qg6 {[%clk
0:00:48.4]} 21. Nxf6+ {[%clk 0:01:41.8]} 21... Qxf6 {[%clk 0:00:48.6]} 22. Qc3
{[%clk 0:01:30.6]} 22... Qc6 {[%clk 0:00:41.1]} 23. Kh1 {[%clk 0:01:25]} 23...
Rac8 {[%clk 0:00:40.2]} 24. Rd4 {[%clk 0:01:18.7]} 24... f6 {[%clk 0:00:38.2]}
25. Qb3 {[%clk 0:01:10.2]} 25... Kh8 {[%clk 0:00:37.6]} 26. Rfd1 {[%clk
0:01:09.1]} 26... Ng6 {[%clk 0:00:32.4]} 27. Bf1 {[%clk 0:01:04.4]} 27... Re7
{[%clk 0:00:22.3]} 28. Rd6 {[%clk 0:01:03.6]} 28... Qc7 {[%clk 0:00:21.9]} 29.
R6d4 {[%clk 0:00:42.7]} 29... Rce8 {[%clk 0:00:20.5]} 30. Qc2 {[%clk 0:00:31.3]}
30... Ne5 {[%clk 0:00:19.1]} 31. Qd2 {[%clk 0:00:30.1]} 31... h6 {[%clk
0:00:18]} 32. Rd8 {[%clk 0:00:29.6]} 32... Rxd8 {[%clk 0:00:16.1]} 33. Qxd8+
{[%clk 0:00:29.4]} 33... Kh7 {[%clk 0:00:14.6]} 34. Qxc7 {[%clk 0:00:25.7]}
34... Rxc7 {[%clk 0:00:15.5]} 35. Bxe5 {[%clk 0:00:20.5]} 35... fxe5 {[%clk
0:00:16.4]} 36. Bd3+ {[%clk 0:00:19.3]} 36... Kg8 {[%clk 0:00:15.3]} 37. Re1
{[%clk 0:00:19.9]} 37... Rc5 {[%clk 0:00:14.8]} 38. Kg1 {[%clk 0:00:19.2]} 38...
Kf7 {[%clk 0:00:15.3]} 39. Kf2 {[%clk 0:00:19]} 39... Ba6 {[%clk 0:00:15.8]} 40.
Rc1 {[%clk 0:00:17]} 40... Ra5 {[%clk 0:00:12.8]} 41. Rc3 {[%clk 0:00:16.2]}
41... Ke6 {[%clk 0:00:13.4]} 42. Ke3 {[%clk 0:00:16.7]} 42... Kd6 {[%clk
0:00:13.9]} 43. Be4 {[%clk 0:00:16.8]} 43... Kc5 {[%clk 0:00:13.1]} 44. Bd5
{[%clk 0:00:16.9]} 44... Ra4 {[%clk 0:00:11.3]} 45. Kd3 {[%clk 0:00:15.3]} 45...
g5 {[%clk 0:00:09.4]} 46. Ke4 {[%clk 0:00:14.9]} 46... Bxc4 {[%clk 0:00:08.4]}
47. Bxc4 {[%clk 0:00:13.3]} 47... Rxc4+ {[%clk 0:00:09.3]} 48. Rxc4+ {[%clk
0:00:13.6]} 48... Kxc4 {[%clk 0:00:10.2]} 49. Kxe5 {[%clk 0:00:14.4]} 49... b5
{[%clk 0:00:10.6]} 50. g3 {[%clk 0:00:14.7]} 50... a5 {[%clk 0:00:10.9]} 51. f4
{[%clk 0:00:15]} 51... gxf4 {[%clk 0:00:11.8]} 52. gxf4 {[%clk 0:00:14.8]} 52...
b4 {[%clk 0:00:12.7]} 53. axb4 {[%clk 0:00:15.1]} 53... a4 {[%clk 0:00:11.7]}
54. f5 {[%clk 0:00:15.7]} 54... a3 {[%clk 0:00:12.1]} 55. f6 {[%clk 0:00:16.6]}
55... a2 {[%clk 0:00:12.8]} 56. f7 {[%clk 0:00:17.4]} 56... a1=Q+ {[%clk
0:00:13.5]} 57. Ke6 {[%clk 0:00:17.7]} 57... Qe1+ {[%clk 0:00:10.5]} 58. Kd7
{[%clk 0:00:17.5]} 58... Qd2+ {[%clk 0:00:10]} 59. Ke8 {[%clk 0:00:16.7]} 59...
Qe3+ {[%clk 0:00:10.5]} 60. Kd7 {[%clk 0:00:14.6]} 60... Qd4+ {[%clk 0:00:10.6]}
61. Ke8 {[%clk 0:00:15.1]} 61... Qe5+ {[%clk 0:00:10.9]} 62. Kd7 {[%clk
0:00:15]} 62... Qf5+ {[%clk 0:00:10.8]} 63. Ke8 {[%clk 0:00:15.1]} 63... Qe6+
{[%clk 0:00:11]} 64. Kf8 {[%clk 0:00:15.5]} 64... h5 {[%clk 0:00:04]} 65. Kg8
{[%clk 0:00:16]} 65... Qg4+ {[%clk 0:00:04]} 66. Kh7 {[%clk 0:00:15.3]} 66...
Qf5+ {[%clk 0:00:04.1]} 67. Kg8 {[%clk 0:00:15.8]} 67... Qg5+ {[%clk 0:00:04.5]}
68. Kh7 {[%clk 0:00:14.9]} 68... Qf6 {[%clk 0:00:04.8]} 69. Kg8 {[%clk
0:00:15.1]} 69... Qg6+ {[%clk 0:00:05.3]} 70. Kf8 {[%clk 0:00:13.5]} 70... Kxb4
{[%clk 0:00:05.9]} 71. h4 {[%clk 0:00:13.4]} 71... Kc5 {[%clk 0:00:04.9]} 72.
Ke7 {[%clk 0:00:13.4]} 72... Qe4+ {[%clk 0:00:05.3]} 73. Kf8 {[%clk 0:00:13]}
73... Kd6 {[%clk 0:00:04.8]} 74. Kg8 {[%clk 0:00:13.6]} 74... Qg4+ {[%clk
0:00:05.2]} 75. Kh8 {[%clk 0:00:13.9]} 75... Qc8+ {[%clk 0:00:05.7]} 76. Kg7
{[%clk 0:00:13.7]} 76... Ke7 {[%clk 0:00:06.4]} 77. Kg6 {[%clk 0:00:14]} 77...
Qf8 {[%clk 0:00:06.5]} 78. Kxh5 {[%clk 0:00:14]} 78... Kxf7 {[%clk 0:00:06.9]}
79. Kg4 {[%clk 0:00:14.7]} 79... Qh8 {[%clk 0:00:07.8]} 80. h5 {[%clk
0:00:14.6]} 80... Kg7 {[%clk 0:00:08.7]} 81. Kh4 {[%clk 0:00:15]} 81... Kh7
{[%clk 0:00:09.6]} 82. Kg5 {[%clk 0:00:15.2]} 82... Qa8 {[%clk 0:00:10.5]} 83.
Kh4 {[%clk 0:00:15.7]} 83... Qd5 {[%clk 0:00:11.2]} 84. Kg4 {[%clk 0:00:15]}
84... Kh6 {[%clk 0:00:12.1]} 85. Kh4 {[%clk 0:00:15.3]} 85... Qxh5+ {[%clk
0:00:13]} 86. Kg3 {[%clk 0:00:15.4]} 86... Qg5+ {[%clk 0:00:13.9]} 0-1

[Event "*** Titled Tuesday Blitz"]
[Site "Chess.com"]
[Date "2020.05.12"]
[Round "7"]
[White "Nikithebest"]
[Black "Euwe1234"]
[Result "1/2-1/2"]
[WhiteElo "2381"]
[BlackElo "2216"]
[TimeControl "180+1"]
[EndTime "11:18:31 PDT"]
[Termination "Game drawn - insufficient material"]

1. e4 {[%clk 0:03:00.8]} 1... c6 {[%clk 0:02:59]} 2. d4 {[%clk 0:03:00.6]} 2...
d5 {[%clk 0:02:58.2]} 3. f3 {[%clk 0:03:01.1]} 3... g6 {[%clk 0:02:57.3]} 4. Nc3
{[%clk 0:03:01]} 4... Bg7 {[%clk 0:02:57.3]} 5. Be3 {[%clk 0:03:01]} 5... Nf6
{[%clk 0:02:57.2]} 6. e5 {[%clk 0:02:59.6]} 6... Nfd7 {[%clk 0:02:57.1]} 7. f4
{[%clk 0:02:59.3]} 7... e6 {[%clk 0:02:56.1]} 8. Qd2 {[%clk 0:02:59.5]} 8... b5
{[%clk 0:02:56.1]} 9. Nf3 {[%clk 0:02:59]} 9... Nb6 {[%clk 0:02:55.5]} 10. Bd3
{[%clk 0:02:58.9]} 10... b4 {[%clk 0:02:55.6]} 11. Ne2 {[%clk 0:02:59]} 11... a5
{[%clk 0:02:55.9]} 12. O-O {[%clk 0:02:59.3]} 12... Ba6 {[%clk 0:02:55.8]} 13.
a3 {[%clk 0:02:41.1]} 13... Bxd3 {[%clk 0:02:54.1]} 14. cxd3 {[%clk 0:02:36.4]}
14... b3 {[%clk 0:02:49.4]} 15. Rac1 {[%clk 0:02:35]} 15... O-O {[%clk
0:02:44.5]} 16. g4 {[%clk 0:02:27.1]} 16... a4 {[%clk 0:02:41.2]} 17. Ng3 {[%clk
0:02:27.1]} 17... N6d7 {[%clk 0:02:38.6]} 18. f5 {[%clk 0:02:26.9]} 18... exf5
{[%clk 0:02:21.7]} 19. gxf5 {[%clk 0:02:26.4]} 19... f6 {[%clk 0:02:09]} 20. Bh6
{[%clk 0:02:15.5]} 20... g5 {[%clk 0:02:05.9]} 21. Bxg7 {[%clk 0:02:14.9]} 21...
Kxg7 {[%clk 0:02:06.8]} 22. Nxg5 {[%clk 0:02:06.1]} 22... fxg5 {[%clk
0:02:05.8]} 23. f6+ {[%clk 0:02:06.2]} 23... Kg6 {[%clk 0:02:04.4]} 24. Nf5
{[%clk 0:02:00]} 24... Nxf6 {[%clk 0:02:00.4]} 25. exf6 {[%clk 0:01:56.3]} 25...
Rxf6 {[%clk 0:02:00.4]} 26. Ng3 {[%clk 0:01:50.1]} 26... Nd7 {[%clk 0:01:57.2]}
27. Qe2 {[%clk 0:01:50.3]} 27... h6 {[%clk 0:01:36.2]} 28. Qh5+ {[%clk
0:01:49.6]} 28... Kh7 {[%clk 0:01:34.1]} 29. Rce1 {[%clk 0:01:28.7]} 29... Rxf1+
{[%clk 0:01:13.3]} 30. Rxf1 {[%clk 0:01:28.3]} 30... Nf8 {[%clk 0:00:56.3]} 31.
Qf7+ {[%clk 0:01:19.9]} 31... Kh8 {[%clk 0:00:54.6]} 32. Nf5 {[%clk 0:01:13.8]}
32... Qd7 {[%clk 0:00:44]} 33. Ne7 {[%clk 0:01:10]} 33... Qe6 {[%clk 0:00:40.2]}
34. Qxe6 {[%clk 0:00:31.1]} 34... Nxe6 {[%clk 0:00:41.1]} 35. Rf6 {[%clk
0:00:20.5]} 35... Nxd4 {[%clk 0:00:36.4]} 36. Nxc6 {[%clk 0:00:21]} 36... Kg7
{[%clk 0:00:31.5]} 37. Rd6 {[%clk 0:00:21.1]} 37... Nxc6 {[%clk 0:00:16.1]} 38.
Rxc6 {[%clk 0:00:21.3]} 38... Re8 {[%clk 0:00:16.7]} 39. Kf2 {[%clk 0:00:21]}
39... d4 {[%clk 0:00:16.7]} 40. Rc4 {[%clk 0:00:17.3]} 40... Rf8+ {[%clk
0:00:16.9]} 41. Ke2 {[%clk 0:00:17.4]} 41... Re8+ {[%clk 0:00:17.3]} 42. Kd2
{[%clk 0:00:17.7]} 42... Rf8 {[%clk 0:00:17.7]} 43. Rxd4 {[%clk 0:00:18.3]}
43... Rf2+ {[%clk 0:00:17.7]} 44. Kc3 {[%clk 0:00:19.2]} 44... Rc2+ {[%clk
0:00:17.7]} 45. Kb4 {[%clk 0:00:17]} 45... Rxb2 {[%clk 0:00:18.6]} 46. Kxa4
{[%clk 0:00:17.5]} 46... Rb1 {[%clk 0:00:19]} 47. Rb4 {[%clk 0:00:17.9]} 47...
b2 {[%clk 0:00:18.4]} 48. Kb3 {[%clk 0:00:16.1]} 48... Rd1 {[%clk 0:00:17.1]}
49. Kxb2 {[%clk 0:00:16.5]} 49... Rxd3 {[%clk 0:00:17.4]} 50. Rc4 {[%clk
0:00:15.2]} 50... Rd2+ {[%clk 0:00:17]} 51. Rc2 {[%clk 0:00:15.8]} 51... Rd4
{[%clk 0:00:16.6]} 52. Kc3 {[%clk 0:00:16.3]} 52... Ra4 {[%clk 0:00:16.4]} 53.
Kb3 {[%clk 0:00:16.9]} 53... Rh4 {[%clk 0:00:16.5]} 54. Ra2 {[%clk 0:00:17]}
54... Rh3+ {[%clk 0:00:14.7]} 55. Kc4 {[%clk 0:00:17.3]} 55... Rh4+ {[%clk
0:00:14.5]} 56. Kd5 {[%clk 0:00:17.8]} 56... Ra4 {[%clk 0:00:14]} 57. Ke5 {[%clk
0:00:16.9]} 57... Kg6 {[%clk 0:00:14.1]} 58. Kd5 {[%clk 0:00:16.6]} 58... h5
{[%clk 0:00:14.3]} 59. Kc5 {[%clk 0:00:17.5]} 59... g4 {[%clk 0:00:14.7]} 60.
Kb5 {[%clk 0:00:18.3]} 60... Ra8 {[%clk 0:00:15.1]} 61. a4 {[%clk 0:00:18.7]}
61... Kg5 {[%clk 0:00:15.2]} 62. a5 {[%clk 0:00:19.6]} 62... h4 {[%clk
0:00:15.6]} 63. a6 {[%clk 0:00:15.9]} 63... g3 {[%clk 0:00:15]} 64. hxg3 {[%clk
0:00:16.3]} 64... hxg3 {[%clk 0:00:15.9]} 65. Kc4 {[%clk 0:00:13.5]} 65... Kf4
{[%clk 0:00:15.8]} 66. Kb5 {[%clk 0:00:10.3]} 66... Kf3 {[%clk 0:00:15.9]} 67.
Kb6 {[%clk 0:00:09.9]} 67... g2 {[%clk 0:00:15.9]} 68. Ra3+ {[%clk 0:00:10.5]}
68... Kf4 {[%clk 0:00:15.1]} 69. Ra1 {[%clk 0:00:09.7]} 69... Kg3 {[%clk
0:00:12.5]} 70. Kb7 {[%clk 0:00:10.1]} 70... Rxa6 {[%clk 0:00:11.5]} 71. Kxa6
{[%clk 0:00:10.6]} 71... Kh2 {[%clk 0:00:12.4]} 72. Ra2 {[%clk 0:00:10.7]} 72...
Kh1 {[%clk 0:00:11.9]} 73. Ra5 {[%clk 0:00:06.8]} 73... g1=Q {[%clk 0:00:08.8]}
74. Rh5+ {[%clk 0:00:07.3]} 74... Qh2 {[%clk 0:00:08.8]} 75. Rxh2+ {[%clk
0:00:07.6]} 75... Kxh2 {[%clk 0:00:09.7]} 1/2-1/2